bitfinex/quotes_ETHUSD_20250114
["timestamp","ask_amount","ask_price","bid_price","bid_amount"]
[1736883666555,0.07734258,3235.1,3234.5,0.28939546]
[1736883667351,0.07734258,3235.1,3234.9,2.91106315]
[1736883667774,0.764,3235.5,3234.9,2.91106315]
[1736883668175,0.07738121,3235.4,3235.0,0.28939546]
[1736883669387,0.07738121,3235.4,3235.0,3.38057546]
[1736883669757,0.07738121,3235.4,3235.1,0.28939546]
[1736883670762,0.764,3235.5,3234.9,2.91106315]
[1736883670969,0.07715548,3235.3,3234.9,2.91106315]
[1736883671279,0.764,3235.1,3234.5,3.2279682]
[1736883671484,0.764,3235.1,3234.6,0.28951118]
[1736883671857,0.0772653,3235.0,3234.7,6.00253315]
[1736883672053,0.0772653,3235.0,3234.7,6.63173758]
[1736883672393,9.00096315,3236.4,3234.7,6.63173758]
[1736883672394,0.945,3235.5,3234.8,1.04451118]
[1736883672559,0.764,3235.5,3235.0,6.00217315]
[1736883672889,0.07730239,3235.4,3235.1,3.09108]
[1736883673275,0.764,3235.8,3235.2,0.28951118]
[1736883673482,0.07748189,3235.7,3235.2,0.28951118]
[1736883673855,0.07748189,3235.7,3235.3,3.09089]
[1736883674061,0.764,3235.8,3235.3,3.09089]
[1736883674288,0.07753371,3235.7,3235.2,0.28951118]
[1736883674459,0.07753371,3235.7,3235.0,6.00222315]
[1736883674795,0.07753371,3235.7,3235.0,3.90958229]
[1736883674991,0.07753371,3235.7,3235.6,6.00167315]
[1736883675192,0.764,3236.2,3235.7,3.09049]
[1736883675566,0.07758981,3236.1,3235.9,2.91106315]
[1736883675892,0.07758981,3236.1,3235.8,0.28937556]
[1736883676271,0.47075379,3236.1,3235.8,0.28937556]
[1736883676754,0.07758981,3236.1,3235.8,0.28937556]
[1736883676960,0.07758981,3236.1,3235.9,2.91106315]
[1736883677289,0.8036,3236.9,3236.3,3.08992]
[1736883677497,0.8036,3236.9,3236.3,6.00098315]
[1736883677794,0.07807774,3236.8,3236.3,6.00098315]
[1736883678002,0.8036,3236.9,3236.3,6.00098315]
[1736883678380,0.07828096,3236.8,3236.3,2.91106315]
[1736883678596,0.07828096,3236.8,3236.6,2.91106315]
[1736883678772,1.1513551,3237.2,3236.6,2.91106315]
[1736883678974,0.07835597,3236.7,3236.3,6.29206947]
[1736883679288,1.1513551,3237.2,3236.3,6.29206947]
[1736883679289,1.1513551,3237.2,3236.6,2.91106315]
[1736883679487,0.07849933,3237.1,3236.9,2.91106315]
[1736883679686,0.07849933,3237.1,3237.0,0.32083675]
[1736883679860,0.1667551,3237.2,3237.0,3.38037632]
[1736883680065,0.1667551,3237.2,3237.0,0.29110632]
[1736883680460,0.078585,3237.1,3237.0,0.29110632]
[1736883680680,0.1667551,3237.2,3237.0,0.29110632]
[1736883680917,0.078585,3237.1,3237.0,0.29110632]
[1736883681121,0.078585,3237.1,3236.6,2.91106315]
[1736883681274,0.1667551,3237.2,3236.6,6.00065315]
[1736883681905,0.1667551,3237.2,3236.6,2.91106315]
[1736883682380,0.1667551,3237.2,3236.6,6.00071315]
[1736883682579,0.1667551,3237.2,3236.7,0.68096132]
[1736883682967,0.07904333,3237.1,3236.7,0.68096132]
[1736883683369,0.8036,3237.0,3236.7,0.68096132]
[1736883683896,0.07899055,3236.9,3236.7,0.68096132]
[1736883684607,0.181,3237.5,3236.7,0.68096132]
[1736883684608,0.79562395,3237.3,3236.7,0.68096132]
[1736883684783,0.79562395,3237.3,3236.8,0.66816445]
[1736883684966,0.07643671,3237.2,3236.8,0.66816445]
[1736883685391,0.79562395,3237.3,3236.8,0.66816445]
[1736883685714,0.07643671,3237.2,3236.9,2.91106315]
[1736883686896,3.08863,3237.7,3237.0,3.11899223]
[1736883686897,0.07633102,3237.1,3237.0,3.11899223]
[1736883687209,0.181,3237.7,3237.0,6.67014513]
[1736883687509,3.08826,3238.1,3237.3,2.91106315]
[1736883687510,0.07370646,3237.6,3237.3,2.91106315]
[1736883688054,9.99,3239.0,3238.0,0.8089]
[1736883688173,9.99,3239.0,3238.9,5.99852315]
[1736883688374,9.99,3239.0,3238.9,8.99852315]
[1736883688569,1.237482,3240.2,3239.0,3.8089]
[1736883688822,0.8036,3240.5,3240.0,2.91106315]
[1736883688972,0.181,3240.8,3240.0,2.91106315]
[1736883689171,3.88918,3240.9,3240.0,2.91106315]
[1736883689429,0.03857592,3240.8,3239.5,0.8089]
[1736883689711,3.88975,3240.3,3239.2,3.08717]
[1736883689884,3.88975,3240.3,3239.0,4.32546093]
[1736883689885,0.03858093,3240.2,3239.0,4.32546093]
[1736883690074,0.03858093,3240.2,3239.2,3.08715]
[1736883690075,0.181,3240.1,3239.2,3.08715]
[1736883690276,0.33058909,3240.0,3239.3,3.51656093]
[1736883690514,0.8036,3240.3,3239.6,3.51656093]
[1736883690811,0.8036,3240.3,3239.3,9.60361093]
[1736883691276,0.1667551,3240.4,3239.9,3.51656093]
[1736883691605,0.1667551,3240.4,3239.1,3.55]
[1736883691606,0.1667551,3240.4,3239.6,3.51656093]
[1736883691811,3.2528551,3240.4,3239.3,3.51656093]
[1736883691982,3.41142551,3240.3,3239.3,6.51656093]
[1736883692183,0.39079811,3240.3,3239.6,3.51656093]
[1736883692510,3.08625,3240.2,3239.3,3.51656093]
[1736883692714,3.08631,3240.2,3239.0,7.41280093]
[1736883692889,0.06546498,3240.1,3239.3,3.51656093]
[1736883693093,0.06546498,3240.1,3239.3,6.60361093]
[1736883693273,3.08623,3240.2,3239.3,3.51656093]
[1736883693480,3.08623,3240.2,3239.0,0.8089]
[1736883693481,0.37409678,3240.1,3239.6,3.51656093]
[1736883693673,0.06547378,3240.1,3239.6,3.51656093]
[1736883693873,0.8036,3240.2,3239.3,6.60364093]
[1736883694098,0.06549408,3240.1,3239.3,6.60364093]
[1736883694303,0.06549408,3240.1,3239.4,3.08697]
[1736883694887,3.15188408,3240.1,3239.3,3.51656093]
[1736883695217,0.39554841,3240.0,3239.3,3.51656093]
[1736883695716,0.06543632,3239.9,3239.0,7.41283093]
[1736883695914,0.06543632,3239.9,3238.6,3.70716928]
[1736883695915,0.06543632,3239.9,3238.7,3.51656093]
[1736883696134,0.06543632,3239.9,3239.1,3.51656093]
[1736883696423,0.06543632,3239.9,3239.2,3.08714]
[1736883697327,0.06543632,3239.9,3239.4,3.51656093]
[1736883697706,4.07084,3240.2,3239.2,0.66037009]
[1736883697906,0.06540107,3240.1,3239.1,6.60381093]
[1736883698130,0.06540107,3240.1,3239.4,7.37271093]
[1736883698441,0.06540107,3240.1,3239.4,3.51656093]
[1736883698657,0.06540107,3240.1,3239.2,3.08715]
[1736883698937,0.06540107,3240.1,3239.4,3.08699]
[1736883699149,0.06540107,3240.1,3239.2,3.08717]
[1736883699350,3.15173107,3240.1,3239.1,0.7692]
[1736883700354,3.15173107,3240.1,3238.9,3.0]
[1736883700355,3.0866,3239.9,3238.9,3.0]
[1736883700507,3.0866,3239.9,3238.8,3.85674]
[1736883700508,3.15173107,3240.1,3238.8,2.005941]
[1736883700709,3.15173107,3240.1,3238.9,0.5796802]
[1736883700710,0.06540107,3240.1,3238.9,0.5796802]
[1736883701011,0.47901818,3240.1,3239.2,3.08711]
[1736883701227,0.47901818,3240.1,3239.0,0.48654411]
[1736883701228,0.47901818,3240.1,3239.0,3.08733]
[1736883701434,0.06540107,3240.1,3238.9,3.0]
[1736883701636,0.7812,3239.8,3238.9,3.0]
[1736883701837,3.86782,3239.8,3238.9,3.0]
[1736883702049,0.06550617,3239.7,3238.9,3.0]
[1736883702538,0.06550617,3239.7,3238.8,3.08753]
[1736883702761,0.39333262,3239.6,3238.5,1.236851]
[1736883702963,0.39333262,3239.6,3238.4,3.85714]
[1736883702964,0.7812,3239.5,3238.4,0.7692]
[1736883703111,0.7812,3239.5,3238.6,3.08768]
[1736883703312,0.06524943,3239.4,3238.6,3.08768]
[1736883704312,0.06524943,3239.4,3238.7,3.08765]
[1736883704513,0.45857437,3239.4,3238.7,3.08765]
[1736883704713,0.45857437,3239.4,3238.5,3.0878]
[1736883705311,3.08717,3239.3,3238.3,6.088]
[1736883705512,3.15237671,3239.2,3238.3,6.088]
[1736883706548,3.15237671,3239.2,3238.3,3.088]
[1736883706743,0.8181,3239.0,3237.9,3.51656093]
[1736883706965,0.8181,3239.0,3238.0,3.0]
[1736883707137,0.8181,3239.0,3238.4,3.08793]
[1736883707335,0.8181,3239.0,3238.2,3.08811]
[1736883707645,0.06467044,3238.9,3238.2,3.08811]
[1736883707960,0.139594,3238.8,3238.0,6.08827]
[1736883708262,0.06455609,3238.7,3238.1,3.0882]
[1736883708466,0.06455609,3238.7,3238.3,3.08802]
[1736883708670,0.139594,3238.8,3238.3,3.08802]
[1736883708961,0.06450022,3238.7,3238.2,3.51656093]
[1736883709159,0.06450022,3238.7,3238.6,3.08775]
[1736883709359,0.06450022,3238.7,3238.6,9.65193114]
[1736883709665,0.139594,3238.8,3238.7,3.08765]
[1736883710476,0.139594,3238.8,3238.7,3.63765]
[1736883711168,0.139594,3238.8,3238.7,3.92372848]
[1736883711485,0.139594,3238.8,3238.7,10.44219724]
[1736883711775,0.139594,3238.8,3238.7,11.93739507]
[1736883712476,0.139594,3238.8,3238.7,10.44219724]
[1736883713333,0.139594,3238.8,3238.7,6.37372848]
[1736883714942,0.139594,3238.8,3238.7,0.28607848]
[1736883715341,0.20459342,3238.8,3238.7,0.28607848]
[1736883716476,0.139594,3238.8,3238.7,3.37372848]
[1736883716967,0.139594,3238.8,3238.7,0.28607848]
[1736883717378,0.20444111,3238.8,3238.7,0.28607848]
[1736883717582,1.28823022,3238.8,3238.7,0.28607848]
[1736883718244,0.95904111,3238.8,3238.7,0.28607848]
[1736883719866,0.95904111,3238.8,3238.1,3.08822]
[1736883720955,0.20444111,3238.8,3238.1,3.08822]
[1736883721365,0.7546,3238.7,3237.9,3.18304184]
[1736883721571,0.7546,3238.7,3238.2,0.28821751]
[1736883721767,0.03860042,3238.6,3238.2,0.28821751]
[1736883721972,0.38808904,3238.5,3238.2,0.28821751]
[1736883722484,0.06445136,3238.4,3238.2,0.28821751]
[1736883722660,0.06445136,3238.4,3237.9,0.28821751]
[1736883723068,0.06445136,3238.4,3237.9,3.37660751]
[1736883723270,0.7546,3238.7,3238.0,0.02970694]
[1736883723470,0.139594,3238.8,3238.6,3.08772]
[1736883723675,0.139594,3238.8,3238.4,3.08786]
[1736883724853,0.139594,3238.8,3238.5,0.28821751]
[1736883726486,0.5396914,3238.8,3238.0,6.27136184]
[1736883726660,3.08769,3238.7,3238.0,3.18304184]
[1736883726866,3.08777,3238.6,3238.0,3.18304184]
[1736883727261,0.7739,3238.4,3237.8,3.18304184]
[1736883727469,0.7739,3237.9,3237.8,3.18304184]
[1736883727975,0.7739,3237.9,3237.6,3.18304184]
[1736883728689,0.7739,3237.9,3237.3,3.08898]
[1736883728989,0.7739,3237.9,3237.3,3.397878]
[1736883729505,0.7739,3238.4,3237.4,0.8184]
[1736883729789,0.7739,3238.4,3237.8,3.0885]
[1736883729790,0.06386734,3238.3,3237.8,3.0885]
[1736883730000,0.06386734,3238.3,3237.4,3.90724]
[1736883730001,0.06386734,3238.3,3237.6,3.08868]
[1736883730151,0.06386734,3238.3,3237.5,3.18304184]
[1736883730353,0.06386734,3238.3,3237.6,0.70902818]
[1736883730553,0.7739,3238.4,3237.6,3.89207002]
[1736883731091,0.7739,3238.4,3237.9,3.08838]
[1736883732204,0.7739,3238.4,3237.7,3.08856]
[1736883732608,0.7739,3238.4,3237.6,3.89207002]
[1736883732823,0.06352435,3238.3,3237.6,3.79766818]
[1736883733494,3.15157435,3238.3,3237.4,6.27193184]
[1736883733709,0.7739,3238.2,3237.4,3.18304184]
[1736883733872,0.06356809,3238.1,3237.3,3.08898]
[1736883734302,0.06356809,3238.1,3237.1,6.27214184]
[1736883734508,0.7739,3238.0,3237.1,7.7089601]
[1736883734689,0.06368767,3237.9,3237.2,3.08906]
[1736883735199,0.06368767,3237.9,3237.4,3.08888]
[1736883735410,0.06368767,3237.9,3237.2,3.51846876]
[1736883735585,0.7739,3238.0,3237.2,3.51846876]
[1736883735773,0.7739,3238.0,3237.6,3.08865]
[1736883736511,0.7739,3238.0,3237.3,0.4955287]
[1736883736677,0.185,3238.5,3237.0,3.18304184]
[1736883736678,0.8111,3237.8,3237.0,3.18304184]
[1736883737010,0.8111,3237.6,3236.7,3.18304184]
[1736883737511,0.24812898,3237.5,3236.7,3.08956]
[1736883737711,0.24812898,3237.5,3236.7,3.71682018]
[1736883738070,0.24812898,3237.5,3236.3,10.6187206]
[1736883738277,0.24812898,3237.5,3236.8,3.0894]
[1736883739076,0.24812898,3237.5,3236.9,3.08934]
[1736883742181,0.24812898,3237.5,3236.7,3.08952]
[1736883743382,0.24812898,3237.5,3236.5,3.0897]
[1736883743579,0.24812898,3237.5,3237.0,3.08927]
[1736883743779,0.24812898,3237.5,3236.7,3.8273]
[1736883744006,0.24812898,3237.5,3237.1,3.08911]
[1736883744287,0.06201428,3237.4,3237.1,3.08911]
[1736883746135,0.06201428,3237.4,3236.9,3.08936]
[1736883746291,0.06201428,3237.4,3237.0,3.08926]
[1736883746622,0.06201428,3237.4,3237.0,3.398186]
[1736883747002,0.185,3237.5,3237.0,3.398186]
[1736883747417,0.185,3237.5,3236.7,3.8273]
[1736883747418,0.185,3237.5,3236.7,3.0]
[1736883747607,0.185,3237.5,3236.7,6.08947]
[1736883748027,0.06204478,3237.4,3236.8,3.08944]
[1736883748397,0.185,3237.5,3236.8,3.08944]
[1736883748796,0.06204478,3237.4,3236.9,3.08937]
[1736883749129,0.185,3237.5,3236.9,3.698307]
[1736883749323,0.06204478,3237.4,3236.9,3.698307]
[1736883749532,0.185,3237.5,3236.9,3.698307]
[1736883749695,0.06207018,3237.4,3236.9,3.698307]
[1736883749897,0.185,3237.5,3236.9,3.698307]
[1736883750131,0.06207018,3237.4,3236.9,3.698307]
[1736883750299,0.9961,3237.6,3236.9,3.698307]
[1736883750629,0.9961,3237.6,3236.6,0.30897]
[1736883750630,0.8111,3237.4,3236.6,0.30897]
[1736883750925,0.185,3237.6,3236.3,6.27294184]
[1736883750926,0.8111,3237.2,3236.3,3.18304184]
[1736883751130,0.8111,3237.2,3236.6,3.08966]
[1736883751131,0.06194593,3237.1,3236.6,3.08966]
[1736883751346,0.8111,3237.2,3236.7,3.08953]
[1736883752148,0.8111,3237.2,3236.5,3.08966]
[1736883752295,0.05945208,3237.1,3236.5,0.308966]
[1736883752497,0.05945208,3237.1,3236.6,3.08965]
[1736883753056,0.8111,3237.2,3236.6,3.08965]
[1736883753704,0.8111,3237.2,3236.4,3.08979]
[1736883753902,0.8111,3237.2,3236.1,0.8273]
[1736883753903,0.05945208,3237.1,3236.2,3.08995]
[1736883754146,0.05945208,3237.1,3236.3,3.691725]
[1736883754354,3.08931,3237.0,3236.1,0.8273]
[1736883754498,0.7767,3236.8,3235.8,0.8178]
[1736883754699,0.05917341,3236.7,3236.0,3.09014]
[1736883756122,0.05917341,3236.7,3236.3,3.08991]
[1736883756301,0.7767,3236.8,3236.1,2.90770698]
[1736883756503,0.05899127,3236.7,3236.4,3.08984]
[1736883756833,0.7767,3236.8,3236.4,3.08984]
[1736883757035,26.6,3241.9,3236.5,3.08975]
[1736883757036,0.05876011,3236.6,3236.5,3.08975]
[1736883757362,3.08844,3237.9,3236.5,3.08975]
[1736883757363,0.7767,3237.1,3236.5,3.0]
[1736883757564,0.34176261,3238.3,3237.1,3.08916]
[1736883757565,0.185,3237.4,3237.1,3.08916]
[1736883757707,0.7767,3237.5,3237.1,3.08916]
[1736883757908,0.05934673,3237.4,3237.1,3.08916]
[1736883758473,0.05934673,3237.4,3236.9,3.08934]
[1736883758623,0.05934673,3237.4,3236.9,0.308934]
[1736883758934,0.05942062,3237.3,3236.7,3.08955]
[1736883759138,0.7767,3237.5,3236.7,3.08955]
[1736883759458,0.05944701,3237.4,3236.7,3.08955]
[1736883760008,0.05944701,3237.4,3236.5,3.08972]
[1736883760009,3.14834701,3237.4,3236.5,3.08972]
[1736883760209,0.05944701,3237.4,3236.6,3.08956]
[1736883760553,0.7767,3237.5,3236.9,2.90770698]
[1736883760751,0.05942665,3237.4,3236.9,2.90770698]
[1736883761051,0.05942665,3237.4,3236.7,0.308956]
[1736883761251,0.05942665,3237.4,3236.7,3.398516]
[1736883761435,0.7767,3237.5,3236.7,0.308956]
[1736883761639,0.0594308,3237.3,3236.3,6.72550698]
[1736883761949,3.86553,3237.5,3236.6,3.08961]
[1736883761950,0.05940441,3237.2,3236.6,3.08961]
[1736883762121,3.86553,3237.5,3236.6,3.08961]
[1736883762305,0.7767,3237.3,3236.6,3.08961]
[1736883762655,0.05940441,3237.2,3236.6,3.08961]
[1736883762833,0.05940441,3237.2,3236.6,3.398571]
[1736883763153,0.05940441,3237.2,3236.6,0.308961]
[1736883763321,0.7767,3237.1,3236.3,6.08988]
[1736883763648,0.05949925,3237.0,3236.3,3.0]
[1736883764021,0.7767,3237.1,3236.3,2.860406]
[1736883764220,0.7767,3237.1,3236.0,6.81568698]
[1736883764430,0.05960494,3237.0,3236.4,3.08983]
[1736883768354,0.05960494,3237.0,3236.0,7.8824961]
[1736883768355,0.05960494,3237.0,3236.3,2.90770698]
[1736883768647,0.7767,3237.1,3236.7,3.08953]
[1736883769010,0.05940311,3237.0,3236.7,3.08953]
[1736883769830,0.05940311,3237.0,3236.8,3.08944]
[1736883770135,0.7767,3237.1,3236.8,3.08944]
[1736883770136,0.7767,3237.1,3236.9,3.08937]
[1736883770935,3.08852,3237.8,3236.9,3.08937]
[1736883770936,0.185,3237.5,3236.9,3.08937]
[1736883771383,0.05954995,3237.4,3236.6,3.68850698]
[1736883771565,0.05954995,3237.4,3237.0,3.0892]
[1736883773431,0.185,3237.5,3237.0,3.0892]
[1736883777211,0.185,3237.5,3236.8,3.22343372]
[1736883777354,3.9052,3237.4,3236.8,3.22343372]
[1736883777683,0.46871736,3237.3,3236.6,3.22343372]
[1736883778039,0.46871736,3237.3,3236.6,6.31308372]
[1736883778239,0.05969736,3237.3,3236.6,6.31308372]
[1736883778514,0.05969736,3237.3,3236.6,3.08965]
[1736883781686,0.05969736,3237.3,3236.4,6.31319372]
[1736883781893,0.8163,3237.2,3236.4,3.22343372]
[1736883782103,0.8163,3236.9,3236.4,3.22343372]
[1736883782255,0.8163,3236.7,3236.3,3.22343372]
[1736883782646,0.05834956,3236.6,3236.3,3.22343372]
[1736883782847,0.05834956,3236.6,3235.9,6.31373372]
[1736883783297,0.05834956,3236.6,3235.9,3.22343372]
[1736883783436,0.05834956,3236.6,3236.4,2.90770698]
[1736883783641,0.8163,3237.1,3236.7,3.08952]
[1736883784050,0.05607326,3237.0,3236.7,3.08952]
[1736883784682,0.8163,3237.1,3236.7,3.08952]
[1736883784986,0.8163,3237.1,3236.5,3.08968]
[1736883785190,0.8163,3237.1,3236.6,3.08965]
[1736883789360,0.185,3237.3,3236.5,3.22343372]
[1736883789567,0.185,3237.3,3236.8,3.08943]
[1736883789881,0.05641151,3237.2,3236.8,3.08943]
[1736883790281,0.185,3237.3,3236.6,3.70268407]
[1736883790520,0.05644119,3237.1,3236.6,3.08957]
[1736883790805,0.185,3237.3,3236.6,3.08957]
[1736883791263,0.05646758,3237.2,3236.6,3.08957]
[1736883791715,0.185,3237.3,3236.6,3.08957]
[1736883792081,0.05646758,3237.2,3236.6,3.08957]
[1736883792283,0.8163,3237.1,3236.6,3.08957]
[1736883792621,0.8163,3237.1,3236.5,3.22343372]
[1736883792914,0.8163,3237.1,3236.4,3.22343372]
[1736883793121,3.08937,3236.9,3236.1,3.22343372]
[1736883793417,0.8728434,3236.8,3236.0,6.31359372]
[1736883793809,0.8163,3236.8,3236.6,0.2496]
[1736883794326,0.05653514,3236.7,3236.6,0.2496]
[1736883794479,0.05653514,3236.7,3236.6,3.33926]
[1736883794679,0.8163,3237.1,3236.6,3.9639567]
[1736883794874,0.8163,3237.1,3236.6,3.33926]
[1736883795080,0.05626251,3237.0,3236.6,3.33926]
[1736883795476,0.05626251,3237.0,3236.7,0.7808]
[1736883795676,0.05626251,3237.0,3236.9,6.63937]
[1736883795917,0.8163,3238.1,3238.0,3.08832]
[1736883796095,0.7567,3238.5,3238.0,2.90770698]
[1736883796277,0.05444202,3238.1,3238.0,2.90770698]
[1736883796481,3.10499076,3238.7,3238.3,3.08802]
[1736883796708,0.05449459,3238.6,3238.3,3.08802]
[1736883796928,0.05449459,3238.6,3238.1,3.08814]
[1736883797109,0.05449459,3238.6,3238.0,2.90770698]
[1736883797309,3.10499076,3238.7,3238.3,3.08799]
[1736883797624,0.05554943,3238.6,3238.1,6.32051362]
[1736883798133,0.05554943,3238.6,3238.1,3.08821]
[1736883799233,0.05554943,3238.6,3237.9,3.08838]
[1736883799528,0.05554943,3238.6,3237.7,9.2286006]
[1736883799726,0.8318,3238.5,3237.7,6.32089362]
[1736883799927,0.8318,3238.5,3237.7,3.08859]
[1736883800235,0.05563002,3238.4,3237.5,9.2287706]
[1736883800379,0.05563002,3238.4,3237.5,2.90770698]
[1736883800580,3.08813,3238.2,3237.2,6.1400106]
[1736883800779,0.8318,3238.0,3237.2,3.23230362]
[1736883801028,0.05595075,3237.9,3237.1,3.08916]
[1736883801230,0.05595075,3237.9,3236.9,6.1400106]
[1736883801397,0.05595075,3237.9,3236.8,0.8194]
[1736883801596,0.05595075,3237.9,3236.9,5.99699698]
[1736883801791,0.05595075,3237.9,3237.0,3.08926]
[1736883801792,0.39761608,3237.8,3237.0,3.08926]
[1736883802106,0.39761608,3237.8,3236.9,2.90770698]
[1736883802308,0.05541133,3237.7,3236.9,5.99704698]
[1736883803784,0.05541133,3237.7,3237.0,3.08926]
[1736883804622,0.8318,3238.0,3237.2,2.90770698]
[1736883804827,0.8318,3238.0,3237.5,3.08877]
[1736883805025,0.05497822,3237.9,3237.5,3.08877]
[1736883805325,0.05497822,3237.9,3237.7,3.08859]
[1736883805494,0.8318,3238.0,3237.3,3.0]
[1736883805701,0.8318,3238.0,3237.5,3.08878]
[1736883805895,0.05512888,3237.9,3237.6,3.0887]
[1736883806313,0.8318,3238.0,3237.6,3.0887]
[1736883806627,0.05514901,3237.9,3237.6,3.0887]
[1736883806922,0.8318,3238.0,3237.6,3.0887]
[1736883807305,0.8318,3238.0,3237.8,3.08851]
[1736883807306,0.05514901,3237.9,3237.8,3.08851]
[1736883807657,0.05514901,3237.9,3237.6,0.30887]
[1736883807658,0.8318,3238.0,3237.6,3.3975]
[1736883807949,0.05532637,3237.9,3237.7,3.08852]
[1736883808102,0.8318,3238.3,3237.7,3.08852]
[1736883808303,0.05540551,3238.2,3237.7,3.08852]
[1736883813220,0.05540551,3238.2,3237.5,2.90770698]
[1736883813838,0.05540551,3238.2,3237.4,3.08883]
[1736883814037,0.39752655,3238.1,3237.4,3.08883]
[1736883814347,0.05561904,3238.0,3237.5,5.99650698]
[1736883814545,0.8318,3238.3,3237.5,5.99650698]
[1736883814744,0.05564536,3238.2,3237.5,5.99650698]
[1736883816015,0.05564536,3238.2,3237.8,5.99620698]
[1736883816337,0.8318,3238.3,3237.8,5.99617698]
[1736883816540,0.055765,3238.2,3237.3,3.22338742]
[1736883816716,0.055765,3238.2,3237.4,3.08882]
[1736883817742,0.055765,3238.2,3237.3,3.69504944]
[1736883818051,3.08832,3238.0,3237.0,3.08919]
[1736883818553,0.05581099,3237.9,3237.0,3.08919]
[1736883818731,0.3144131,3237.8,3237.0,3.08919]
[1736883819415,0.8305,3237.7,3237.0,3.08919]
[1736883819832,0.0556317,3237.6,3237.0,3.08919]
[1736883820229,0.8305,3237.7,3237.0,3.08919]
[1736883820432,0.05560532,3237.5,3237.0,3.08919]
[1736883820630,0.0556317,3237.6,3237.0,3.08919]
[1736883820859,0.05557894,3237.4,3237.0,3.08919]
[1736883821172,0.8305,3237.2,3236.7,3.08955]
[1736883821331,0.05549978,3237.1,3236.6,0.2496]
[1736883821531,0.8305,3237.2,3236.6,0.2496]
[1736883822141,0.8305,3237.2,3236.6,0.53750345]
[1736883822342,0.8305,3237.2,3236.9,3.08935]
[1736883822558,0.05517704,3237.1,3236.9,3.08935]
[1736883822755,0.8305,3237.2,3236.9,3.08935]
[1736883822954,0.8305,3237.2,3236.6,3.62713345]
[1736883822955,0.05517704,3237.1,3236.8,3.08945]
[1736883823158,0.8305,3237.2,3236.8,3.08945]
[1736883823354,0.05520595,3237.1,3236.8,3.08945]
[1736883824277,0.05520595,3237.1,3236.6,3.33917]
[1736883825073,0.8305,3237.2,3236.6,0.2496]
[1736883825371,0.8305,3237.2,3237.1,3.08918]
[1736883826734,0.8305,3237.2,3236.9,3.08932]
[1736883827472,0.82678094,3237.2,3236.9,3.08932]
[1736883827853,0.05473177,3237.1,3236.9,3.08932]
[1736883828254,0.82678094,3237.2,3236.9,3.08932]
[1736883828465,0.82678094,3237.2,3237.1,3.08918]
[1736883828967,3.0876,3238.8,3237.1,3.21662498]
[1736883829167,3.08788,3238.5,3237.6,3.0887]
[1736883829477,3.87563512,3238.4,3237.4,3.08885]
[1736883829773,0.3914242,3238.3,3237.4,3.08885]
[1736883830080,0.3914242,3238.3,3237.3,3.08898]
[1736883830443,0.55,3238.3,3237.3,3.08898]
[1736883830654,0.7792,3238.1,3237.3,3.08898]
[1736883830853,0.7792,3238.0,3237.1,3.08914]
[1736883831590,0.7792,3237.9,3237.1,3.08914]
[1736883833473,0.7792,3237.9,3236.8,5.99715698]
[1736883833679,0.7792,3237.9,3237.2,3.08904]
[1736883837055,0.183,3237.8,3237.2,3.08904]
[1736883837481,0.7792,3237.7,3236.9,0.5997157]
[1736883837683,0.7792,3237.7,3236.8,3.08938]
[1736883837992,0.7792,3237.7,3236.6,0.2496]
[1736883838286,0.405078,3237.6,3237.0,3.08926]
[1736883838453,0.7792,3237.7,3237.0,3.08926]
[1736883839787,0.81781315,3237.6,3236.6,3.47298742]
[1736883839992,0.7792,3237.4,3236.6,0.2496]
[1736883840287,0.7792,3237.3,3236.6,0.2496]
[1736883840655,0.7792,3237.3,3236.6,3.33921]
[1736883841497,0.7792,3237.3,3236.7,0.28828492]
[1736883841653,0.7792,3237.3,3236.7,3.37783492]
[1736883841856,0.7792,3237.3,3236.7,0.28828492]
[1736883842089,0.7792,3237.3,3236.9,3.0893]
[1736883842500,0.05496254,3237.2,3236.8,0.28828492]
[1736883842889,0.7792,3237.3,3236.9,3.08936]
[1736883843266,0.05496254,3237.2,3236.9,3.08936]
[1736883844097,3.1276048,3237.3,3236.6,0.2496]
[1736883844275,1.13527918,3237.2,3236.6,0.2496]
[1736883844600,0.8387863,3237.2,3236.6,0.2496]
[1736883845305,0.8387863,3237.2,3236.7,3.08956]
[1736883845509,0.8387863,3237.2,3237.0,3.08925]
[1736883846003,0.8387863,3237.2,3236.8,3.08942]
[1736883846197,0.8387863,3237.2,3236.7,0.2884465]
[1736883846398,0.7839,3237.2,3236.7,0.2884465]
[1736883846605,0.05474156,3237.1,3236.7,0.2884465]
[1736883846970,0.05474156,3237.1,3236.8,0.2884465]
[1736883847371,0.05474156,3237.1,3236.8,3.3778865]
[1736883847767,0.05474156,3237.1,3236.9,0.2884465]
[1736883848277,0.05474156,3237.1,3236.9,3.3777965]
[1736883848606,0.05474156,3237.1,3237.0,3.08928]
[1736883848767,0.7839,3237.2,3237.0,3.08928]
[1736883848969,0.05473136,3237.1,3237.0,3.3777265]
[1736883849169,0.05473136,3237.1,3237.0,0.2884465]
[1736883850803,0.7839,3237.2,3237.0,0.2884465]
[1736883851003,0.05473136,3237.1,3237.0,0.2884465]
[1736883851866,0.05473136,3237.1,3236.6,0.2496]
[1736883852071,0.05473136,3237.1,3236.7,3.08955]
[1736883852521,0.7839,3237.2,3236.7,3.08955]
[1736883852887,0.7839,3237.2,3236.8,0.28867744]
[1736883853298,0.05468549,3237.1,3236.8,0.28867744]
[1736883853696,0.05468549,3237.1,3236.8,3.37808744]
[1736883854034,0.05468549,3237.1,3236.9,0.28867744]
[1736883854798,0.05468549,3237.1,3237.0,3.08928]
[1736883855228,0.181,3237.3,3237.0,3.08928]
[1736883855411,0.05475265,3237.2,3237.0,3.37795744]
[1736883855784,0.9649,3237.5,3237.1,3.08911]
[1736883856211,0.9649,3237.5,3237.0,3.37793744]
[1736883857133,0.9649,3237.5,3237.2,3.08908]
[1736883857299,0.7839,3237.5,3237.4,3.08889]
[1736883857631,0.181,3237.7,3237.4,3.08889]
[1736883857829,0.05478615,3237.6,3237.4,3.08889]
[1736883857984,0.05478615,3237.6,3237.4,3.37756744]
[1736883858502,0.05478615,3237.6,3237.4,0.28867744]
[1736883858703,0.83818615,3237.6,3237.4,0.28867744]
[1736883858903,0.7834,3237.6,3237.4,0.28867744]